[Event "*** Titled Tuesday Blitz"]
[Site "Chess.com"]
[Date "2020.12.01"]
[Round "4"]
[White "chessmachine14"]
[Black "InitiatingASC"]
[Result "1/2-1/2"]
[WhiteElo "2248"]
[BlackElo "2422"]
[TimeControl "180+1"]
[EndTime "10:39:53 PST"]
[Termination "Game drawn - insufficient material"]

1. e4 {[%clk 0:03:00.9]} 1... c5 {[%clk 0:02:57.9]} 2. Nf3 {[%clk 0:03:00.2]}
2... Nc6 {[%clk 0:02:57.8]} 3. d4 {[%clk 0:02:59.7]} 3... cxd4 {[%clk
0:02:58.1]} 4. Nxd4 {[%clk 0:02:59.9]} 4... Nf6 {[%clk 0:02:58.7]} 5. Nc3 {[%clk
0:03:00.1]} 5... e5 {[%clk 0:02:58.8]} 6. Ndb5 {[%clk 0:03:00.1]} 6... h6 {[%clk
0:02:59.1]} 7. Nd6+ {[%clk 0:02:57.8]} 7... Bxd6 {[%clk 0:02:58.7]} 8. Qxd6
{[%clk 0:02:58.7]} 8... Qe7 {[%clk 0:02:59.6]} 9. Qxe7+ {[%clk 0:02:53.6]} 9...
Kxe7 {[%clk 0:03:00.5]} 10. Be3 {[%clk 0:02:52.1]} 10... Rd8 {[%clk 0:03:00.9]}
11. O-O-O {[%clk 0:02:51.3]} 11... d6 {[%clk 0:03:01.6]} 12. f4 {[%clk
0:02:48.4]} 12... Bg4 {[%clk 0:02:51.6]} 13. Rd2 {[%clk 0:02:46.8]} 13... exf4
{[%clk 0:02:43]} 14. Bxf4 {[%clk 0:02:45.8]} 14... a6 {[%clk 0:02:40.5]} 15. Bc4
{[%clk 0:02:04.8]} 15... Rac8 {[%clk 0:02:36]} 16. h3 {[%clk 0:01:56.4]} 16...
Be6 {[%clk 0:02:34.2]} 17. Nd5+ {[%clk 0:01:56.1]} 17... Bxd5 {[%clk 0:02:33.3]}
18. exd5 {[%clk 0:01:54.7]} 18... Ne5 {[%clk 0:02:32]} 19. Be2 {[%clk
0:01:38.1]} 19... Ne4 {[%clk 0:02:23.8]} 20. Rd4 {[%clk 0:01:33]} 20... Nc5
{[%clk 0:02:13.8]} 21. b3 {[%clk 0:01:17.6]} 21... Rc7 {[%clk 0:02:08]} 22. Kb2
{[%clk 0:01:16.1]} 22... Ncd7 {[%clk 0:02:06.3]} 23. Rf1 {[%clk 0:01:10.6]}
23... Rdc8 {[%clk 0:02:04.7]} 24. c4 {[%clk 0:01:09.7]} 24... b5 {[%clk
0:02:04.3]} 25. Bg4 {[%clk 0:00:55.4]} 25... Nxg4 {[%clk 0:01:49.7]} 26. hxg4
{[%clk 0:00:53.7]} 26... f6 {[%clk 0:01:41]} 27. Rc1 {[%clk 0:00:27.9]} 27...
bxc4 {[%clk 0:01:33.8]} 28. Rcxc4 {[%clk 0:00:27.3]} 28... Ne5 {[%clk
0:01:30.3]} 29. Bxe5 {[%clk 0:00:23.8]} 29... fxe5 {[%clk 0:01:29]} 30. Rxc7+
{[%clk 0:00:16.6]} 30... Rxc7 {[%clk 0:01:25.9]} 31. Ra4 {[%clk 0:00:14.7]}
31... Rc5 {[%clk 0:01:24.9]} 32. Rxa6 {[%clk 0:00:14.2]} 32... Rxd5 {[%clk
0:01:25.4]} 33. Ra7+ {[%clk 0:00:13.8]} 33... Kf6 {[%clk 0:01:25.2]} 34. a4
{[%clk 0:00:14.2]} 34... Rd2+ {[%clk 0:01:25.4]} 35. Kc3 {[%clk 0:00:14.2]}
35... Rxg2 {[%clk 0:01:25.9]} 36. a5 {[%clk 0:00:14.4]} 36... d5 {[%clk
0:01:23.8]} 37. Rb7 {[%clk 0:00:13.6]} 37... d4+ {[%clk 0:01:23.8]} 38. Kd3
{[%clk 0:00:13.4]} 38... Rg3+ {[%clk 0:01:22.7]} 39. Ke4 {[%clk 0:00:13]} 39...
Re3+ {[%clk 0:01:20.1]} 40. Kd5 {[%clk 0:00:13]} 40... d3 {[%clk 0:01:20.3]} 41.
Rd7 {[%clk 0:00:10.5]} 41... d2 {[%clk 0:01:16.2]} 42. Kc4 {[%clk 0:00:10.7]}
42... Re2 {[%clk 0:00:58]} 43. Kc3 {[%clk 0:00:10.8]} 43... d1=Q {[%clk
0:00:43.8]} 44. Rxd1 {[%clk 0:00:10.3]} 44... Ra2 {[%clk 0:00:44.7]} 45. Rd5
{[%clk 0:00:10.1]} 45... Ke6 {[%clk 0:00:39.5]} 46. Rb5 {[%clk 0:00:10.2]} 46...
g6 {[%clk 0:00:37.7]} 47. b4 {[%clk 0:00:09.5]} 47... h5 {[%clk 0:00:37.3]} 48.
Rb6+ {[%clk 0:00:09.9]} 48... Kd5 {[%clk 0:00:33.7]} 49. Rxg6 {[%clk 0:00:08.4]}
49... h4 {[%clk 0:00:34]} 50. Rh6 {[%clk 0:00:08]} 50... h3 {[%clk 0:00:33.9]}
51. a6 {[%clk 0:00:05]} 51... h2 {[%clk 0:00:33.2]} 52. a7 {[%clk 0:00:05.2]}
52... Ra3+ {[%clk 0:00:27.4]} 53. Kb2 {[%clk 0:00:03.5]} 53... Rxa7 {[%clk
0:00:25.1]} 54. Rxh2 {[%clk 0:00:04]} 54... Ke4 {[%clk 0:00:23.9]} 55. Re2+
{[%clk 0:00:02.8]} 55... Kf4 {[%clk 0:00:23.2]} 56. Kc3 {[%clk 0:00:03.1]} 56...
e4 {[%clk 0:00:22.6]} 57. b5 {[%clk 0:00:02.4]} 57... Kf3 {[%clk 0:00:22]} 58.
Re1 {[%clk 0:00:02.3]} 58... e3 {[%clk 0:00:18.3]} 59. b6 {[%clk 0:00:02.6]}
59... Rb7 {[%clk 0:00:17.1]} 60. Kd3 {[%clk 0:00:02.9]} 60... Rd7+ {[%clk
0:00:16.3]} 61. Kc4 {[%clk 0:00:02.8]} 61... Kf2 {[%clk 0:00:16.5]} 62. Rxe3
{[%clk 0:00:02.8]} 62... Kxe3 {[%clk 0:00:16.6]} 63. Kc5 {[%clk 0:00:03.2]}
63... Ke4 {[%clk 0:00:15.4]} 64. Kc6 {[%clk 0:00:03.4]} 64... Rd1 {[%clk
0:00:14.9]} 65. b7 {[%clk 0:00:03.4]} 65... Rc1+ {[%clk 0:00:15.2]} 66. Kd7
{[%clk 0:00:03.4]} 66... Rd1+ {[%clk 0:00:14.4]} 67. Kc7 {[%clk 0:00:03.5]}
67... Rc1+ {[%clk 0:00:14.5]} 68. Kd7 {[%clk 0:00:03.1]} 68... Rb1 {[%clk
0:00:14.8]} 69. Kc7 {[%clk 0:00:03.3]} 69... Kf4 {[%clk 0:00:14.2]} 70. b8=Q
{[%clk 0:00:03.1]} 70... Rxb8 {[%clk 0:00:13.9]} 71. Kxb8 {[%clk 0:00:04]} 71...
Kxg4 {[%clk 0:00:14.3]} 1/2-1/2

[Event "*** Titled Tuesday Blitz"]
[Site "Chess.com"]
[Date "2020.12.01"]
[Round "4"]
[White "Pelopidass"]
[Black "javirec"]
[Result "1-0"]
[WhiteElo "2556"]
[BlackElo "2372"]
[TimeControl "180+1"]
[EndTime "10:40:00 PST"]
[Termination "Pelopidass won by checkmate"]

1. e4 {[%clk 0:03:00.9]} 1... e5 {[%clk 0:02:57.8]} 2. Nf3 {[%clk 0:03:01.2]}
2... Nc6 {[%clk 0:02:57.5]} 3. Bb5 {[%clk 0:03:01.5]} 3... a6 {[%clk 0:02:57.8]}
4. Ba4 {[%clk 0:03:01.2]} 4... Nf6 {[%clk 0:02:58]} 5. O-O {[%clk 0:02:56.6]}
5... Be7 {[%clk 0:02:58.1]} 6. Bxc6 {[%clk 0:02:56.3]} 6... dxc6 {[%clk
0:02:57.1]} 7. d3 {[%clk 0:02:56.9]} 7... Nd7 {[%clk 0:02:40.9]} 8. Nbd2 {[%clk
0:02:56.5]} 8... O-O {[%clk 0:02:39.7]} 9. Nc4 {[%clk 0:02:56.4]} 9... Bf6
{[%clk 0:02:37.8]} 10. b3 {[%clk 0:02:53]} 10... Re8 {[%clk 0:02:33.4]} 11. Bb2
{[%clk 0:02:50.8]} 11... b5 {[%clk 0:02:27.1]} 12. Na5 {[%clk 0:02:27]} 12...
Re6 {[%clk 0:02:25.2]} 13. d4 {[%clk 0:02:15]} 13... exd4 {[%clk 0:02:18.6]} 14.
Nxd4 {[%clk 0:02:15.9]} 14... Bxd4 {[%clk 0:02:16.2]} 15. Qxd4 {[%clk
0:02:16.8]} 15... Qf8 {[%clk 0:02:15.3]} 16. Rad1 {[%clk 0:02:07.5]} 16... c5
{[%clk 0:02:13]} 17. Qd5 {[%clk 0:02:06.9]} 17... Nb6 {[%clk 0:02:12.8]} 18. Qh5
{[%clk 0:01:59.4]} 18... Rxe4 {[%clk 0:01:39.3]} 19. Bxg7 {[%clk 0:01:48.6]}
19... Bg4 {[%clk 0:01:24.3]} 20. Qxg4 {[%clk 0:01:23.6]} 20... Rxg4 {[%clk
0:01:21.6]} 21. Bxf8 {[%clk 0:01:23.9]} 21... Kxf8 {[%clk 0:01:13.7]} 22. Rfe1
{[%clk 0:01:22.5]} 22... Re8 {[%clk 0:00:41]} 23. Rxe8+ {[%clk 0:01:19.7]} 23...
Kxe8 {[%clk 0:00:41.9]} 24. Nc6 {[%clk 0:01:19.7]} 24... f6 {[%clk 0:00:41.6]}
25. f3 {[%clk 0:01:12.3]} 25... Rg5 {[%clk 0:00:34.9]} 26. Nb8 {[%clk
0:00:56.7]} 26... a5 {[%clk 0:00:27.8]} 27. Na6 {[%clk 0:00:44.3]} 27... Na8
{[%clk 0:00:02.1]} 28. c4 {[%clk 0:00:38.3]} 28... b4 {[%clk 0:00:01.9]} 29. Kf2
{[%clk 0:00:33.3]} 29... Re5 {[%clk 0:00:02.4]} 30. Nb8 {[%clk 0:00:27]} 30...
Re6 {[%clk 0:00:02.1]} 31. Nd7 {[%clk 0:00:26.3]} 31... Rc6 {[%clk 0:00:02.6]}
32. Rd5 {[%clk 0:00:21.5]} 32... Ke7 {[%clk 0:00:02.1]} 33. Nxc5 {[%clk
0:00:19.9]} 33... Nb6 {[%clk 0:00:03]} 34. Rh5 {[%clk 0:00:19.9]} 34... Kd6
{[%clk 0:00:02.1]} 35. Ne4+ {[%clk 0:00:19.2]} 35... Ke6 {[%clk 0:00:01.8]} 36.
Rxh7 {[%clk 0:00:19.6]} 36... Nd7 {[%clk 0:00:02.3]} 37. h4 {[%clk 0:00:18.3]}
37... Ne5 {[%clk 0:00:01.9]} 38. h5 {[%clk 0:00:17.6]} 38... Nd3+ {[%clk
0:00:02.4]} 39. Ke3 {[%clk 0:00:17.6]} 39... Nc1 {[%clk 0:00:03.3]} 40. h6
{[%clk 0:00:17.6]} 40... Nxa2 {[%clk 0:00:03.8]} 41. Rg7 {[%clk 0:00:18.2]}
41... f5 {[%clk 0:00:02.3]} 42. Rg6+ {[%clk 0:00:17]} 42... Kd7 {[%clk
0:00:03.2]} 43. Rxc6 {[%clk 0:00:17.3]} 43... Kxc6 {[%clk 0:00:04.1]} 44. h7
{[%clk 0:00:17.7]} 44... fxe4 {[%clk 0:00:05]} 45. h8=Q {[%clk 0:00:18.2]} 45...
Nc3 {[%clk 0:00:05.5]} 46. fxe4 {[%clk 0:00:17]} 46... Kb6 {[%clk 0:00:05]} 47.
Qf6+ {[%clk 0:00:16.9]} 47... c6 {[%clk 0:00:05.3]} 48. g4 {[%clk 0:00:15.4]}
48... a4 {[%clk 0:00:05.7]} 49. bxa4 {[%clk 0:00:15.2]} 49... Nxa4 {[%clk
0:00:06.6]} 50. g5 {[%clk 0:00:15.3]} 50... b3 {[%clk 0:00:07.2]} 51. g6 {[%clk
0:00:15.4]} 51... b2 {[%clk 0:00:07.5]} 52. Qxb2+ {[%clk 0:00:15.5]} 52... Nxb2
{[%clk 0:00:08.4]} 53. g7 {[%clk 0:00:14.2]} 53... Nxc4+ {[%clk 0:00:08.3]} 54.
Kf4 {[%clk 0:00:14.8]} 54... c5 {[%clk 0:00:04.1]} 55. g8=Q {[%clk 0:00:14.9]}
55... Kb5 {[%clk 0:00:04.2]} 56. Qe8+ {[%clk 0:00:14]} 56... Kb4 {[%clk
0:00:03.8]} 57. Qb8+ {[%clk 0:00:13.8]} 57... Kc3 {[%clk 0:00:03.8]} 58. Qb5
{[%clk 0:00:12.8]} 58... Kd4 {[%clk 0:00:03.8]} 59. Qa4 {[%clk 0:00:12.3]} 59...
Kc3 {[%clk 0:00:03.4]} 60. e5 {[%clk 0:00:11.3]} 60... Nb2 {[%clk 0:00:02.9]}
61. Qa5+ {[%clk 0:00:10.9]} 61... Kc4 {[%clk 0:00:02.4]} 62. e6 {[%clk
0:00:11.3]} 62... Nd3+ {[%clk 0:00:02.4]} 63. Kf5 {[%clk 0:00:11.8]} 63... Nb4
{[%clk 0:00:03.3]} 64. e7 {[%clk 0:00:10.8]} 64... Nc6 {[%clk 0:00:03.7]} 65.
Qa6+ {[%clk 0:00:11.1]} 65... Kd5 {[%clk 0:00:03.5]} 66. Qxc6+ {[%clk
0:00:11.5]} 66... Kxc6 {[%clk 0:00:03.6]} 67. e8=Q+ {[%clk 0:00:12.4]} 67... Kb6
{[%clk 0:00:03.9]} 68. Qe6+ {[%clk 0:00:11.8]} 68... Kb5 {[%clk 0:00:04.2]} 69.
Ke4 {[%clk 0:00:12.7]} 69... c4 {[%clk 0:00:04]} 70. Kd4 {[%clk 0:00:13.1]}
70... Kb4 {[%clk 0:00:04.9]} 71. Qb6+ {[%clk 0:00:13]} 71... Ka3 {[%clk
0:00:05.8]} 72. Kc3 {[%clk 0:00:12.5]} 72... Ka2 {[%clk 0:00:06.7]} 73. Qb2#
{[%clk 0:00:12.7]} 1-0

[Event "*** Titled Tuesday Blitz"]
[Site "Chess.com"]
[Date "2020.12.01"]
[Round "4"]
[White "esapunov"]
[Black "Konavets"]
[Result "1/2-1/2"]
[WhiteElo "2812"]
[BlackElo "3010"]
[TimeControl "180+1"]
[EndTime "10:40:05 PST"]
[Termination "Game drawn by repetition"]

1. c4 {[%clk 0:03:00.9]} 1... e6 {[%clk 0:02:59.1]} 2. Nf3 {[%clk 0:03:00.4]}
2... d5 {[%clk 0:02:59.4]} 3. d4 {[%clk 0:03:00.4]} 3... Nf6 {[%clk 0:02:59.3]}
4. Nc3 {[%clk 0:03:00.1]} 4... Bb4 {[%clk 0:02:58.9]} 5. Qa4+ {[%clk 0:03:00.2]}
5... Nc6 {[%clk 0:02:59]} 6. Bg5 {[%clk 0:03:00.4]} 6... h6 {[%clk 0:02:53.1]}
7. Bxf6 {[%clk 0:02:59.9]} 7... Qxf6 {[%clk 0:02:54]} 8. e3 {[%clk 0:03:00.4]}
8... O-O {[%clk 0:02:54.2]} 9. Rc1 {[%clk 0:03:00]} 9... Bd7 {[%clk 0:02:52.2]}
10. a3 {[%clk 0:02:57.6]} 10... Bxc3+ {[%clk 0:02:47.7]} 11. Rxc3 {[%clk
0:02:57.1]} 11... Rad8 {[%clk 0:02:39]} 12. Qc2 {[%clk 0:02:54.6]} 12... dxc4
{[%clk 0:02:39]} 13. Bxc4 {[%clk 0:02:53.2]} 13... e5 {[%clk 0:02:39.4]} 14. d5
{[%clk 0:02:51.2]} 14... Ne7 {[%clk 0:02:39.5]} 15. O-O {[%clk 0:02:45.2]} 15...
Bg4 {[%clk 0:02:39.2]} 16. Qe4 {[%clk 0:02:44]} 16... Bxf3 {[%clk 0:02:35.8]}
17. Qxf3 {[%clk 0:02:40]} 17... Qg6 {[%clk 0:01:53.3]} 18. e4 {[%clk 0:02:28.2]}
18... c6 {[%clk 0:01:51.3]} 19. dxc6 {[%clk 0:01:52.6]} 19... Nxc6 {[%clk
0:01:52.2]} 20. Bd5 {[%clk 0:01:51.4]} 20... Nd4 {[%clk 0:01:52.3]} 21. Qe3
{[%clk 0:01:51.7]} 21... Kh8 {[%clk 0:01:52]} 22. f4 {[%clk 0:01:46.8]} 22...
Qb6 {[%clk 0:01:45.6]} 23. Kh1 {[%clk 0:01:01.9]} 23... exf4 {[%clk 0:01:18.9]}
24. Rxf4 {[%clk 0:00:57.9]} 24... Qxb2 {[%clk 0:01:19]} 25. Rf1 {[%clk
0:00:47.4]} 25... Ne6 {[%clk 0:01:13.8]} 26. Rb3 {[%clk 0:00:43.7]} 26... Qe5
{[%clk 0:01:13.5]} 27. Qxa7 {[%clk 0:00:38.3]} 27... f5 {[%clk 0:01:13.6]} 28.
Bxe6 {[%clk 0:00:22]} 28... Qxe6 {[%clk 0:01:09.7]} 29. Rxb7 {[%clk 0:00:20.3]}
29... fxe4 {[%clk 0:01:06.7]} 30. Rxf8+ {[%clk 0:00:20]} 30... Rxf8 {[%clk
0:01:06.5]} 31. Rb8 {[%clk 0:00:20.5]} 31... Rxb8 {[%clk 0:01:00.2]} 32. Qxb8+
{[%clk 0:00:20.6]} 32... Kh7 {[%clk 0:01:01.1]} 33. Qb1 {[%clk 0:00:20.5]} 33...
Qc4 {[%clk 0:00:59.1]} 34. Kg1 {[%clk 0:00:19.5]} 34... Kg6 {[%clk 0:00:55.7]}
35. Kf2 {[%clk 0:00:19.2]} 35... Kf5 {[%clk 0:00:55.5]} 36. h3 {[%clk
0:00:12.5]} 36... Qc5+ {[%clk 0:00:55.1]} 37. Ke2 {[%clk 0:00:11.6]} 37... Qc4+
{[%clk 0:00:33.1]} 38. Ke3 {[%clk 0:00:10.3]} 38... Qc3+ {[%clk 0:00:31.9]} 39.
Ke2 {[%clk 0:00:10.3]} 39... Qa5 {[%clk 0:00:11.4]} 40. Qb3 {[%clk 0:00:08.5]}
40... Qa6+ {[%clk 0:00:08.3]} 41. Kf2 {[%clk 0:00:08.6]} 41... Qa7+ {[%clk
0:00:08.6]} 42. Qe3 {[%clk 0:00:08.5]} 42... Qc7 {[%clk 0:00:05]} 43. g4+ {[%clk
0:00:08.3]} 43... Kf6 {[%clk 0:00:05.1]} 44. Qd4+ {[%clk 0:00:06.2]} 44... Kg5
{[%clk 0:00:03.5]} 45. Qxe4 {[%clk 0:00:06.5]} 45... Kh4 {[%clk 0:00:02.9]} 46.
Qf3 {[%clk 0:00:06]} 46... Qc2+ {[%clk 0:00:03.1]} 47. Ke1 {[%clk 0:00:05.9]}
47... Qc1+ {[%clk 0:00:03.2]} 48. Ke2 {[%clk 0:00:06]} 48... Qb2+ {[%clk
0:00:03.6]} 49. Kf1 {[%clk 0:00:06.3]} 49... Qc1+ {[%clk 0:00:03.7]} 50. Kg2
{[%clk 0:00:06.7]} 50... Qc8 {[%clk 0:00:02.2]} 51. Qg3+ {[%clk 0:00:06.6]}
51... Kg5 {[%clk 0:00:02.3]} 52. Qe3+ {[%clk 0:00:06.9]} 52... Kh4 {[%clk
0:00:02.1]} 53. Qg3+ {[%clk 0:00:07.2]} 53... Kg5 {[%clk 0:00:02.1]} 54. Qe5+
{[%clk 0:00:07.1]} 54... Kg6 {[%clk 0:00:01.7]} 55. Qe4+ {[%clk 0:00:06.4]}
55... Kf6 {[%clk 0:00:02.2]} 56. Qf4+ {[%clk 0:00:06.4]} 56... Kg6 {[%clk
0:00:02.3]} 57. Qe4+ {[%clk 0:00:06.5]} 57... Kf6 {[%clk 0:00:02.7]} 58. Qf3+
{[%clk 0:00:06.5]} 58... Ke7 {[%clk 0:00:02.3]} 59. h4 {[%clk 0:00:06.9]} 59...
Qc2+ {[%clk 0:00:02.1]} 60. Kh3 {[%clk 0:00:07]} 60... Qa4 {[%clk 0:00:02]} 61.
h5 {[%clk 0:00:07.3]} 61... Qb5 {[%clk 0:00:01.7]} 62. Qe3+ {[%clk 0:00:07]}
62... Kd6 {[%clk 0:00:02.3]} 63. Kg3 {[%clk 0:00:07.5]} 63... Qa4 {[%clk
0:00:02.2]} 64. Kf3 {[%clk 0:00:07.6]} 64... Qc6+ {[%clk 0:00:02]} 65. Kf4
{[%clk 0:00:07.8]} 65... Qa4+ {[%clk 0:00:02]} 66. Kf5 {[%clk 0:00:08]} 66...
Qd7+ {[%clk 0:00:02.2]} 67. Kg6 {[%clk 0:00:07.8]} 67... Qxg4+ {[%clk
0:00:02.4]} 68. Kh7 {[%clk 0:00:08.4]} 68... Qxh5 {[%clk 0:00:03]} 69. Qd4+
{[%clk 0:00:08.1]} 69... Ke6 {[%clk 0:00:03]} 70. Qxg7 {[%clk 0:00:08]} 70...
Qf5+ {[%clk 0:00:02.8]} 71. Kxh6 {[%clk 0:00:07.5]} 71... Qh3+ {[%clk
0:00:03.2]} 72. Kg6 {[%clk 0:00:07.9]} 72... Qd3+ {[%clk 0:00:03.4]} 73. Kh6
{[%clk 0:00:08.2]} 73... Qh3+ {[%clk 0:00:03.7]} 74. Kg6 {[%clk 0:00:08.6]}
74... Qd3+ {[%clk 0:00:03.9]} 75. Kh6 {[%clk 0:00:09]} 75... Qh3+ {[%clk
0:00:04.3]} 1/2-1/2

[Event "*** Titled Tuesday Blitz"]
[Site "Chess.com"]
[Date "2020.12.01"]
[Round "4"]
[White "ambaixador"]
[Black "HrvojeZagreb"]
[Result "1-0"]
[WhiteElo "2436"]
[BlackElo "2246"]
[TimeControl "180+1"]
[EndTime "10:40:05 PST"]
[Termination "ambaixador won by checkmate"]

1. d4 {[%clk 0:03:00.8]} 1... e6 {[%clk 0:02:36.2]} 2. Nf3 {[%clk 0:03:00.3]}
2... f5 {[%clk 0:02:35.8]} 3. c4 {[%clk 0:02:59.7]} 3... Nf6 {[%clk 0:02:36]} 4.
g3 {[%clk 0:03:00.4]} 4... Be7 {[%clk 0:02:35.3]} 5. Bg2 {[%clk 0:03:01.3]} 5...
O-O {[%clk 0:02:35.6]} 6. O-O {[%clk 0:03:02.1]} 6... d6 {[%clk 0:02:35.9]} 7.
Nc3 {[%clk 0:03:00.6]} 7... Ne4 {[%clk 0:02:36.1]} 8. Qc2 {[%clk 0:02:59.7]}
8... Nxc3 {[%clk 0:02:36.1]} 9. Qxc3 {[%clk 0:03:00.6]} 9... Bf6 {[%clk
0:02:36.4]} 10. Qc2 {[%clk 0:02:54.2]} 10... e5 {[%clk 0:02:34.8]} 11. dxe5
{[%clk 0:02:52.2]} 11... dxe5 {[%clk 0:02:35.7]} 12. Rd1 {[%clk 0:02:51.1]}
12... Qe8 {[%clk 0:02:35.8]} 13. Nd2 {[%clk 0:02:21.7]} 13... Qh5 {[%clk
0:02:31.6]} 14. Nf1 {[%clk 0:02:21.9]} 14... Nc6 {[%clk 0:02:26.9]} 15. e3
{[%clk 0:02:02.4]} 15... Nb4 {[%clk 0:02:08.3]} 16. Qb3 {[%clk 0:02:01.4]} 16...
a5 {[%clk 0:01:51.4]} 17. Bd2 {[%clk 0:02:00.3]} 17... c5 {[%clk 0:01:43.6]} 18.
Bxb4 {[%clk 0:01:56.4]} 18... axb4 {[%clk 0:01:41.6]} 19. Rd5 {[%clk 0:01:46.8]}
19... Ra5 {[%clk 0:01:32.3]} 20. Rad1 {[%clk 0:01:42]} 20... Be6 {[%clk
0:01:27.5]} 21. Rd6 {[%clk 0:01:42]} 21... Bf7 {[%clk 0:01:01.4]} 22. Bxb7
{[%clk 0:01:39.4]} 22... f4 {[%clk 0:00:46.7]} 23. a3 {[%clk 0:01:09.9]} 23...
bxa3 {[%clk 0:00:42.5]} 24. bxa3 {[%clk 0:01:10.8]} 24... Bg5 {[%clk 0:00:18.5]}
25. exf4 {[%clk 0:00:57.7]} 25... exf4 {[%clk 0:00:18.3]} 26. Bd5 {[%clk
0:00:34.8]} 26... Bxd5 {[%clk 0:00:15.9]} 27. R6xd5 {[%clk 0:00:35.7]} 27... Qh6
{[%clk 0:00:14.3]} 28. Qd3 {[%clk 0:00:25.9]} 28... f3 {[%clk 0:00:12.2]} 29. h4
{[%clk 0:00:18.6]} 29... Bf6 {[%clk 0:00:06.9]} 30. Qxf3 {[%clk 0:00:17.7]}
30... Raa8 {[%clk 0:00:05.2]} 31. Rd7 {[%clk 0:00:16.5]} 31... Bd4 {[%clk
0:00:04.6]} 32. Qd5+ {[%clk 0:00:15.7]} 32... Kh8 {[%clk 0:00:04.9]} 33. Rxd4
{[%clk 0:00:15.7]} 33... cxd4 {[%clk 0:00:04.7]} 34. Qxd4 {[%clk 0:00:16.6]}
34... Qf6 {[%clk 0:00:04.3]} 35. c5 {[%clk 0:00:14.6]} 35... Rxa3 {[%clk
0:00:04]} 36. Qxf6 {[%clk 0:00:13.8]} 36... gxf6 {[%clk 0:00:04.9]} 37. c6
{[%clk 0:00:14.1]} 37... Rc3 {[%clk 0:00:05.2]} 38. c7 {[%clk 0:00:14.2]} 38...
Kg8 {[%clk 0:00:05.3]} 39. Ne3 {[%clk 0:00:13.6]} 39... f5 {[%clk 0:00:05.2]}
40. Nd5 {[%clk 0:00:13.7]} 40... Rc5 {[%clk 0:00:05.1]} 41. Ne7+ {[%clk
0:00:14]} 41... Kh8 {[%clk 0:00:05.3]} 42. c8=Q {[%clk 0:00:13.4]} 42... Rcxc8
{[%clk 0:00:05.6]} 43. Nxc8 {[%clk 0:00:14.3]} 43... f4 {[%clk 0:00:06.5]} 44.
Nd6 {[%clk 0:00:13.7]} 44... fxg3 {[%clk 0:00:06.6]} 45. fxg3 {[%clk 0:00:14.6]}
45... Kg8 {[%clk 0:00:06.5]} 46. Kg2 {[%clk 0:00:14.8]} 46... Ra8 {[%clk
0:00:07.4]} 47. Nf5 {[%clk 0:00:14.8]} 47... Ra6 {[%clk 0:00:06.5]} 48. Kh3
{[%clk 0:00:14.6]} 48... Kf8 {[%clk 0:00:06.3]} 49. Kg4 {[%clk 0:00:14.8]} 49...
h5+ {[%clk 0:00:06.5]} 50. Kxh5 {[%clk 0:00:14.5]} 50... Ra5 {[%clk 0:00:07.4]}
51. Kg5 {[%clk 0:00:14.7]} 51... Ke8 {[%clk 0:00:07.7]} 52. Rb7 {[%clk
0:00:13.9]} 52... Kf8 {[%clk 0:00:07.5]} 53. g4 {[%clk 0:00:14.3]} 53... Rc5
{[%clk 0:00:07]} 54. h5 {[%clk 0:00:14.6]} 54... Rc8 {[%clk 0:00:06.2]} 55. h6
{[%clk 0:00:14.8]} 55... Ra8 {[%clk 0:00:05.9]} 56. Kg6 {[%clk 0:00:14.2]} 56...
Kg8 {[%clk 0:00:05.3]} 57. g5 {[%clk 0:00:13.3]} 57... Kh8 {[%clk 0:00:05]} 58.
Kh5 {[%clk 0:00:12]} 58... Rg8 {[%clk 0:00:04.6]} 59. g6 {[%clk 0:00:12.1]}
59... Rc8 {[%clk 0:00:03.1]} 60. Kg5 {[%clk 0:00:12]} 60... Rd8 {[%clk
0:00:02.6]} 61. g7+ {[%clk 0:00:11.6]} 61... Kh7 {[%clk 0:00:02.5]} 62. Ne3
{[%clk 0:00:09.2]} 62... Rg8 {[%clk 0:00:02.5]} 63. Kf6 {[%clk 0:00:08.3]} 63...
Re8 {[%clk 0:00:01.9]} 64. Ng4 {[%clk 0:00:08.3]} 64... Re4 {[%clk 0:00:01.3]}
65. Kf7 {[%clk 0:00:08.4]} 65... Rf4+ {[%clk 0:00:01.6]} 66. Nf6+ {[%clk
0:00:08.2]} 66... Rxf6+ {[%clk 0:00:01.4]} 67. Kxf6 {[%clk 0:00:08.2]} 67...
Kxh6 {[%clk 0:00:02.2]} 68. g8=Q {[%clk 0:00:07.7]} 68... Kh5 {[%clk 0:00:02.8]}
69. Qg5# {[%clk 0:00:08.3]} 1-0